[Event "III Menorca Open-A 2024"]
[Site "Ciutadella Menorca"]
[Date "2024.04.04"]
[Round "5.15"]
[White "Karthik Venkataraman"]
[Black "Deuer, Marius"]
[Result "1-0"]
[ECO "A34"]
[WhiteElo "2609"]
[BlackElo "2439"]
[Annotator "TA"]
[PlyCount "81"]
[EventDate "2024.04.02"]
[EventType "swiss"]
[EventCountry "ESP"]
[SourceTitle "playchess.com"]
[Source "ChessBase"]
[SourceQuality "1"]
[TimeControl "5400+30"]

{[%evp 21,81,0,17,19,12,-16,-23,-14,-14,-22,-2,-19,-29,-10,-9,-16,-7,-14,0,-13,-14,-19,0,0,0,0,0,12,10,0,0,0,0,0,0,0,0,0,0,0,0,8,31,43,186,174,187,206,221,220,29972,29976,29978,29979,29984,29985,29985,29986,29986,29987,29987,29988]} 1. c4 {[%emt 0:00:03]} Nf6 {[%emt 0:00:07]} 2. Nc3 {[%emt 0:00:06]} c5 {[%emt 0:00:05]} 3. g3 {[%emt 0:00:07]} d5 {[%emt 0:00:42]} 4. cxd5 {[%emt 0:00:07]} Nxd5 {[%emt 0:00:06]} 5. Bg2 {[%emt 0:00:09]} Nc7 {[%emt 0:00:04]} 6. e3 {[%emt 0:00:19]} e5 {[%emt 0:09:17] 6...e5 scores better than 6...Nc6. A34: Symmetrical English: 2 Nc3, lines with ...d5.} 7. Nge2 {[%emt 0:00:12]} Nc6 {[%emt 0:05:30]} 8. O-O {[%emt 0:00:55]} Be7 {[%emt 0:06:01]} 9. f4 {[%emt 0:00:09]} O-O {[%emt 0:02:56]} 10. b3 {[%emt 0:00:13]} f6 $146 {[%emt 0:05:39]} ({Predecessor:} 10... Bf5 11. fxe5 Qd7 12. d4 Rad8 13. Ba3 Rfe8 14. dxc5 Qe6 15. Qe1 Qxe5 16. Qf2 Bg6 {½-½ Jobava,B (2588)-Volokitin,A (2687) EU-ch 22nd Terme Catez 2022 (9)}) 11. Ba3 {[%emt 0:05:21]} Be6 {[%emt 0:02:43]} 12. Ne4 {[%emt 0:15:19]} Na6 {[%emt 0:02:02]} 13. f5 {[%emt 0:01:41]} Bf7 {[%emt 0:01:16]} 14. g4 {[%emt 0:00:06]} Nab4 {[%emt 0:03:00]} 15. h4 {[%emt 0:09:06]} c4 {[%emt 0:11:22]} 16. N2c3 {[%emt 0:00:55]} Kh8 {[%emt 0:02:58]} 17. Kh2 {[%emt 0:05:13]} Rc8 {[%emt 0:02:24]} 18. Rg1 {[%emt 0:03:26]} cxb3 {[%emt 0:03:36]} 19. axb3 {[%emt 0:01:06]} Nd5 {[%emt 0:00:08]} 20. Bxe7 {[%emt 0:00:59]} Qxe7 {[%emt 0:00:54]} 21. g5 {[%emt 0:04:59]} Nxc3 {[%emt 0:03:15]} 22. dxc3 {[%emt 0:00:36]} Rcd8 {[%emt 0:00:56]} 23. Qc2 {[%emt 0:01:43]} Bd5 {[%emt 0:02:29]} 24. c4 {[%emt 0:25:51]} Nb4 {[%emt 0:03:36]} 25. Qc3 {[%emt 0:00:45]} Bc6 {[%emt 0:00:26]} 26. c5 {[%emt 0:00:09]} (26. Rxa7 fxg5 27. c5 Nd5 $17) 26... Nd5 {[%emt 0:05:18]} 27. Qe1 $1 {[%emt 0:00:10]} fxg5 {[%emt 0:05:42]} 28. Nxg5 {[%emt 0:00:32]} Nc7 {[%emt 0:03:09]} (28... Qxc5 $6 29. Ne6 Qe7 30. Qg3 $16 (30. Rxa7 Ra8 $11)) 29. Bxc6 {[%emt 0:01:43]} (29. Rxa7 e4 (29... Rxf5 30. Bxc6 bxc6 31. Qb1 $14) (29... Qxc5 30. Ra5 $15) 30. Rf1 h6 $17 (30... Qxc5 31. Ra5 $11)) 29... bxc6 {[%emt 0:00:49]} 30. Rxa7 {[%emt 0:00:08]} Rxf5 {[%emt 0:00:18]} 31. Qb4 {[%emt 0:10:28]} h6 {[%emt 0:01:38]} 32. Qe4 {[%emt 0:01:26]} Qf6 {[%emt 0:10:28]} (32... Rd2+ $1 $14 33. Rg2 Rxg2+ 34. Kxg2 Qf8 (34... Qd7 $2 35. Rxc7 Rxg5+ 36. hxg5 $18)) 33. Rxc7 $18 {[%emt 0:02:49]} hxg5 {[%emt 0:00:06]} 34. Rxc6 {[%emt 0:00:05]} (34. Qxc6 $2 Rf2+ 35. Rg2 Qf5 $19 (35... Qxc6 $2 36. Rxc6 Rf3 37. Rd6 $18) (35... Rxg2+ 36. Qxg2 g4 37. Kg3 $11)) 34... Qf7 {[%emt 0:00:37] [#]} 35. Rg2 $1 {[%emt 0:02:30]} (35. Rxg5 Rxg5 36. hxg5 Qh5+ 37. Kg3 Qxg5+ 38. Kf2 Rf8+ 39. Ke2 Qg1 40. Qh4+ (40. Qxe5 Qf1+ 41. Kd2 Rf2+ 42. Kc3 Qa1+ 43. Kb4 Qxe5 44. Rc8+ Kh7 45. Kb5 Qd5 46. b4 Qb7+ 47. Kc4 Qxc8 48. Kd4 Qd7+ 49. Kc3 Rd2 50. b5 Qd3+ 51. Kb4 Rb2+ 52. Ka4 Qxb5+ 53. Ka3 Qb4#) 40... Kg8 41. Qc4+ Kh8 $16) 35... gxh4 $2 {[%emt 0:00:34]} (35... Rf2 $18 36. Rd6 (36. Qxe5 $2 {perishes.} Rxg2+ 37. Kxg2 Rd2+ 38. Kg3 Qf2+ 39. Kg4 Qg2+ 40. Qg3 Qxc6 $19) (36. hxg5 Qh5+ 37. Kg3 Rxg2+ 38. Kxg2 Rd2+ 39. Kg3 Qxg5+ 40. Kh3 Qh5+ 41. Kg3 Qh2+ 42. Kg4 Qg1+ 43. Kf5 Qf1+ 44. Kxe5 Qa1+ 45. Kf5 Qf1+ 46. Ke5 Qa1+ 47. Kf5 Qf1+ 48. Ke5 $11) 36... Rf8 (36... Rxg2+ 37. Qxg2 Rxd6 38. cxd6 $16)) 36. Rcg6 {[%emt 0:00:57]} Rh5 {[%emt 0:03:00]} 37. Rxg7 {[%emt 0:00:20]} Qe6 {[%emt 0:00:45]} 38. R7g6 {[%emt 0:01:10]} Qf7 {[%emt 0:00:38]} 39. Qg4 {[%emt 0:02:02]} Rh7 {[%emt 0:00:05]} 40. Qg5 {[%emt 0:00:04]} Re8 {[%emt 0:00:14]} 41. Rh6 {[%emt 0:00:14]} 1-0

[Event "III Menorca Open-A 2024"]
[Site "Ciutadella Menorca"]
[Date "2024.04.04"]
[Round "5.16"]
[White "Levin, Guy"]
[Black "Yuffa, Daniil"]
[Result "1/2-1/2"]
[ECO "D04"]
[WhiteElo "2451"]
[BlackElo "2606"]
[Annotator "TA"]
[PlyCount "53"]
[EventDate "2024.04.02"]
[EventType "swiss"]
[EventCountry "ESP"]
[SourceTitle "playchess.com"]
[Source "ChessBase"]
[SourceQuality "1"]
[TimeControl "5400+30"]

{[%evp 9,53,-14,0,-5,-10,-7,0,0,0,0,0,0,-21,-11,0,0,8,12,37,38,20,34,32,31,27,27,31,40,29,30,41,0,33,40,64,68,56,63,61,58,100,95,100,41,41,4]} 1. Nf3 {[%emt 0:00:12]} d5 {[%emt 0:00:25]} 2. e3 {[%emt 0:00:08]} c5 {[%emt 0:00:06]} 3. d4 {[%emt 0:00:05]} Nf6 {[%emt 0:00:34]} 4. dxc5 {[%emt 0:02:04]} e6 {[%emt 0:00:59]} 5. a3 {[%emt 0:00:11]} Bxc5 {[%emt 0:02:36]} 6. b4 {[%emt 0:00:14]} Be7 {[%emt 0:01:57]} 7. Bb2 {[%emt 0:00:09]} O-O {[%emt 0:00:27]} 8. Be2 {[%emt 0:00:26] The position is equal.} b6 {[%emt 0:01:02]} 9. O-O {[%emt 0:00:25]} Bb7 {[%emt 0:00:32]} 10. Nbd2 {[%emt 0:00:27]} Nbd7 {[%emt 0:02:45]} 11. c4 {[%emt 0:00:12]} Rc8 {[%emt 0:03:27]} 12. Rc1 {[%emt 0:28:35]} dxc4 {[%emt 0:00:23]} 13. Nxc4 {[%emt 0:06:42]} h6 {[%emt 0:22:33]} 14. Qd4 {[%emt 0:04:51]} Bd5 {[%emt 0:04:45]} 15. Rfd1 {[%emt 0:05:28]} Rc7 {[%emt 0:20:39]} 16. Nce5 {[%emt 0:04:42]} Nxe5 {[%emt 0:04:21]} 17. Nxe5 {[%emt 0:00:53]} Qb8 {[%emt 0:01:55]} 18. Rxc7 {[%emt 0:07:31]} Qxc7 {[%emt 0:00:06]} 19. Rc1 {[%emt 0:00:17]} Qb7 {[%emt 0:03:04]} 20. Qc3 {[%emt 0:09:08]} Ne4 {[%emt 0:12:46]} 21. Qc7 {[%emt 0:06:11]} Bd6 {[%emt 0:00:49]} 22. Qxb7 {[%emt 0:02:12]} Bxb7 {[%emt 0:00:04]} 23. f3 {[%emt 0:02:48] [#] Threatens to win with Nc4.} Nf6 {[%emt 0:00:06]} 24. e4 {[%emt 0:03:05]} a5 {[%emt 0:00:09]} 25. Rd1 {[%emt 0:05:00]} Be7 {[%emt 0:01:18]} 26. Nd7 {[%emt 0:00:56] White is more active.} (26. bxa5 $16 {a6 would now be deadly.} bxa5 27. a4) 26... Rd8 $14 {[%emt 0:03:03]} 27. Nxb6 {[%emt 0:02:06] Weighted Error Value: White=0.05 (flawless) /Black=0.07 (flawless) .  Mistake:       	White=1     	---        Inaccurate:     	White=2     	Black=2      OK:         	White=10    	Black=5      Best:        	---       	Black=1} 1/2-1/2

[Event "III Menorca Open-A 2024"]
[Site "Ciutadella Menorca"]
[Date "2024.04.04"]
[Round "5.17"]
[White "Albornoz Cabrera, Carlos Daniel"]
[Black "Jacobson, Aaron"]
[Result "1-0"]
[ECO "C42"]
[WhiteElo "2603"]
[BlackElo "2431"]
[Annotator "TA"]
[PlyCount "123"]
[EventDate "2024.04.02"]
[EventType "swiss"]
[EventCountry "ESP"]
[SourceTitle "playchess.com"]
[Source "ChessBase"]
[SourceQuality "1"]
[TimeControl "5400+30"]

{[%evp 18,123,29,15,12,17,14,17,28,0,0,7,50,16,22,12,17,12,54,25,24,55,70,11,13,0,47,42,45,37,101,93,96,96,87,105,95,93,93,91,104,98,121,103,101,100,153,164,159,165,220,225,218,219,227,237,224,221,214,168,168,167,168,161,135,-29990,-10002,-6283,839,158,195,202,202,202,202,176,240,240,244,240,244,240,244,240,244,244,237,237,237,228,29958,29959,5106,5059,5059,519,29973,29975,29975,29976,29979,29980,29980,29981,29987,29977,29989,29990]} 1. e4 {[%emt 0:00:03]} e5 {[%emt 0:00:12]} 2. Nf3 {[%emt 0:00:05]} Nf6 {[%emt 0:00:05]} 3. Nxe5 {[%emt 0:00:03]} d6 {[%emt 0:00:05]} 4. Nf3 {[%emt 0:00:03]} Nxe4 {[%emt 0:00:06]} 5. d4 {[%emt 0:00:03]} d5 {[%emt 0:00:06]} 6. Bd3 {[%emt 0:00:04]} Bd6 {[%emt 0:00:33]} 7. O-O {[%emt 0:00:11]} O-O {[%emt 0:00:05]} 8. c4 {[%emt 0:00:05]} c6 {[%emt 0:00:05]} 9. Re1 {[%emt 0:01:11]} Bf5 {[%emt 0:00:37]} 10. Qb3 {[%emt 0:00:15]} Qd7 {[%emt 0:00:47]} 11. c5 {[%emt 0:02:10]} Bc7 {[%emt 0:00:40]} 12. Nbd2 {[%emt 0:00:08][%cal Rd2e4]} Be6 {[%emt 0:03:48] The position is equal.} 13. Qc2 {[%emt 0:14:00]} (13. Qxb7 $2 Bxh2+ 14. Nxh2 Qxb7 $19) 13... f5 {[%emt 0:01:31]} 14. Nf1 {[%emt 0:02:27]} b6 {[%emt 0:12:36]} 15. b4 {[%emt 0:06:17]} a5 {[%emt 0:07:38]} 16. cxb6 {[%emt 0:00:10]} Bxb6 {[%emt 0:00:06]} 17. bxa5 {[%emt 0:06:40]} Rxa5 {[%emt 0:09:12]} 18. Bd2 {[%emt 0:01:15]} Ra8 {[%emt 0:05:49]} 19. a4 {[%emt 0:12:38]} Qa7 {[%emt 0:00:37]} 20. Qb2 {[%emt 0:01:37]} (20. a5 $14 Bc7 21. Bb4) 20... Nd7 $11 {[%emt 0:02:47][%cal Od7e5]} 21. a5 {[%emt 0:01:56]} Bc7 {[%emt 0:00:09]} (21... Bd8 $1 $11) 22. Qc2 {[%emt 0:05:44]} Rfc8 {[%emt 0:00:21]} 23. Ng3 $36 {[%emt 0:07:43][%mdl 2048] Black is under pressure.} (23. Qxc6 $2 Bxh2+ 24. N1xh2 Rxc6 $19) 23... c5 {[%emt 0:06:01]} (23... h6 $14) 24. Ng5 $16 {[%emt 0:02:57]} cxd4 {[%emt 0:03:28] Strongly threatening ...Bxg3.} 25. Qa2 $1 {[%emt 0:04:41]} (25. Nxe6 $2 Bxg3 26. Qa2 Bxf2+ 27. Kh1 Bxe1 28. Bxe1 Ndf6 $19) 25... Bxg3 {[%emt 0:11:10]} 26. hxg3 {[%emt 0:01:14]} (26. Nxe6 $2 Bxf2+ 27. Kh1 Bxe1 28. Bxe1 Ndf6 $19) 26... Nxg5 {[%emt 0:04:01]} 27. Bxg5 {[%emt 0:00:02] This pair of bishops is nice.} Nc5 {[%emt 0:01:01][%cal Oh7h6]} 28. Qe2 {[%emt 0:08:13]} Nxd3 {[%emt 0:07:55]} 29. Qxd3 {[%emt 0:01:19]} Rc3 {[%emt 0:00:25]} 30. Qd2 {[%emt 0:00:26][%mdl 1024] White has strong compensation.} Rc6 {[%emt 0:03:17]} 31. Bf4 {[%emt 0:01:56] Black is weak on the dark squares} Ra6 {[%emt 0:07:02]} (31... Bf7 $142 32. Reb1 Ra6) 32. Rac1 $1 {[%emt 0:03:30] And now Rc7 would win.} Qf7 {[%emt 0:03:19]} 33. Bc7 {[%emt 0:03:26] White is more active.} Qf6 {[%emt 0:05:39]} (33... Rc8 $142) 34. Bb6 $18 {[%emt 0:01:25]} Bf7 {[%emt 0:06:17]} 35. Rc7 {[%emt 0:02:59][%cal Od2d3]} (35. Qxd4 Qxd4 36. Bxd4 Rxa5 $11) 35... Rxb6 {[%emt 0:00:00]} 36. axb6 {[%emt 0:00:06]} Qxb6 {[%emt 0:01:00]} 37. Rec1 {[%emt 0:03:30] Threatens to win with Rc8+.} h6 {[%emt 0:00:00]} 38. Qd3 {[%emt 0:02:07][%cal Oc7f7] aiming for Rxf7!} Qf6 {[%emt 0:00:00]} 39. R7c6 {[%emt 0:01:18]} Qe5 {[%emt 0:00:00]} 40. Rc8+ {[%emt 0:00:58]} Rxc8 {[%emt 0:00:00] [#]} 41. Rc3 {[%emt 0:06:05][%mdl 8192]} Rc7 (41... dxc3 $142 42. Qc2 d4 (42... Qe1+ 43. Kh2 Qe4 44. Qc1 c2 45. f3 Qd3 46. g4 Qd1 47. g5 Qxc1 48. g6 Bxg6 49. g4 Qf4+ 50. Kh3 c1=R 51. gxf5 Bxf5+ 52. Kg2 R8c2#) 43. Kh2 d3 44. Qd1 c2 45. Qc1 d2 46. Qxd2 c1=Q (46... c1=B $2 47. Qd1 $19) 47. Qd7 Qee1 48. Qxc8+ Qxc8 49. g4 Qb8+ (49... Qxf2 $2 50. Kh3 Qc6 51. gxf5 Qcxg2#) 50. g3 Qxf2+ 51. Kh3 Qfxg3#) 42. Rxc7 $19 {[%emt 0:00:00][%mdl 4096] Endgame. KQR-KQB} Kh7 $4 {[%emt 0:00:00][%mdl 8192]} (42... Qxc7 $19 43. Qa6 Qc4 44. Qa8+ Kh7) 43. Rc1 $2 {[%emt 0:00:00]} (43. Rxf7 $18 {is the precise move to win.} Kg6 44. Rd7) 43... Bg6 {[%emt 0:02:29]} 44. Rd1 {[%emt 0:00:00]} f4 {[%emt 0:00:54]} 45. gxf4 {[%emt 0:00:00]} (45. Qxd4 Qxd4 46. Rxd4 fxg3) 45... Qxf4 {[%emt 0:00:25]} 46. Qxd4 {[%emt 0:00:00]} Qg5 {[%emt 0:00:40]} (46... Qxd4 {was worth a try.} 47. Rxd4 Bf7) 47. Qxd5 $18 {[%emt 0:00:00]} Qg4 {[%emt 0:00:22]} 48. Re1 {[%emt 0:00:00] Against Be4} Qh4 {[%emt 0:00:33]} 49. Qe5 {[%emt 0:00:00]} Qc4 {[%emt 0:00:23]} 50. Re3 {[%emt 0:00:00]} Qc1+ {[%emt 0:00:10] [#]} 51. Kh2 $1 {[%emt 0:00:00]} Qd2 {[%emt 0:00:17]} 52. Rf3 {[%emt 0:00:00]} Qc2 {[%emt 0:00:52]} 53. Rf8 {[%emt 0:00:39] Black must now prevent Qb8.} Qa2 $2 {[%emt 0:00:25]} (53... Qd1 $18 54. Kg3 Qh5) 54. Qb8 {[%emt 0:00:26][%csl Gb8][%cal Rf8h8]} Bf7 {[%emt 0:00:35]} 55. Rh8+ {[%emt 0:00:13]} Kg6 {[%emt 0:00:01]} 56. Qd6+ {[%emt 0:00:40]} (56. Qg3+ $142 Kf6 57. Rh7) 56... Be6 {[%emt 0:01:04]} (56... Qe6 $18 57. Qg3+ Kf6) 57. Re8 {[%emt 0:00:37] White mates.} Kf5 {[%emt 0:00:13] [#]} 58. g4+ $1 {[%emt 0:01:38]} Kf6 {[%emt 0:00:04]} (58... Kxg4 59. Qxe6+) 59. Qe7+ {[%emt 0:00:08]} Ke5 {[%emt 0:00:03]} 60. Qxg7+ {[%emt 0:05:09]} Ke4 {[%emt 0:00:22]} 61. Qg6+ {[%emt 0:00:00]} ({And not} 61. Qxh6 Qxf2+ 62. Kh3 (62. Kh1 Qf1+ 63. Kh2 Qe2+ 64. Kh3 Qf3+ 65. Kh2 Qe2+ 66. Kh1 Qd1+ 67. Kh2 Qe2+ $11) 62... Qf3+ 63. Kh2 Qf2+ 64. Kh1 Qf3+ 65. Kg1 Qxg4+ 66. Kf2 Qf3+ 67. Kg1 Qg3+ 68. Kf1 Qd3+ 69. Kg1 Qb1+ 70. Kf2 Qa2+ 71. Kg1 Qb1+ 72. Kf2 Qb6+ 73. Kf1 Qb5+ 74. Kf2 Qxe8 $11) 61... Kf3 {[%emt 0:00:04]} 62. Qf6+ {[%emt 0:00:00] What a bad dream for Black.   Weighted Error Value: White=0.36/Black=0.44.  Loses game:     	White=1     	---        Mistake:       	White=1     	Black=7      Inaccurate:     	White=2     	Black=2      OK:         	White=14    	Black=15     Best:        	White=3     	Black=2      Strong:       	White=3     	---} (62. Rxe6 $2 {is a self mate.} Qxf2+ 63. Kh3 Qg3#) 1-0

[Event "III Menorca Open-A 2024"]
[Site "Ciutadella Menorca"]
[Date "2024.04.04"]
[Round "5.18"]
[White "Koelle, Tobias"]
[Black "Adhiban, B.."]
[Result "0-1"]
[ECO "D24"]
[WhiteElo "2467"]
[BlackElo "2541"]
[Annotator "TA"]
[PlyCount "151"]
[EventDate "2024.04.02"]
[EventType "swiss"]
[EventCountry "ESP"]
[SourceTitle "playchess.com"]
[Source "ChessBase"]
[SourceQuality "1"]
[TimeControl "5400+30"]

{[%evp 83,151,-89,-92,-89,0,-66,-59,-59,-45,-45,-45,-59,-59,-59,-59,-59,-8,-8,-8,-18,-8,-8,-8,-8,0,-8,-8,-8,-8,-8,-8,-8,-8,-8,-8,-8,-8,-14,-7,-7,0,-7,-7,-7,-7,-8,-8,-7,-7,-8,-8,-8,-8,-8,-8,-8,-8,-8,-8,-8,-8,-8,-8,-8,-8,-8,0,-8,0,-8]} 1. d4 {[%emt 0:00:02]} d5 {[%emt 0:00:21]} 2. c4 {[%emt 0:00:05]} e6 {[%emt 0:00:29]} 3. Nf3 {[%emt 0:00:07]} Nf6 {[%emt 0:00:49]} 4. Nc3 {[%emt 0:00:12]} dxc4 {[%emt 0:00:07]} 5. e4 {[%emt 0:00:07]} b5 {[%emt 0:00:03]} 6. e5 {[%emt 0:00:05] D24: Queen's Gambit Accepted: 3 Nf3 Nf6 4 Nc3.} Nd5 {[%emt 0:00:03]} 7. Nxb5 {[%emt 0:00:04]} Nb6 {[%emt 0:00:02]} 8. Be2 {[%emt 0:00:08]} Nc6 {[%emt 0:00:06]} 9. O-O {[%emt 0:00:07]} Be7 {[%emt 0:00:08]} 10. Nc3 {[%emt 0:00:05]} O-O {[%emt 0:00:46]} 11. Qd2 {[%emt 0:00:04]} a5 $1 $146 {[%emt 0:00:21][%mdl 8] A relevant novelty.} ({Predecessor:} 11... Nb4 12. a3 N4d5 13. Ne4 Rb8 14. Re1 Bd7 15. Nc5 Bc6 16. Qc2 h6 17. Bf1 Kh8 {0-1 Moranda,W (2589)-Warakomski,T (2533) POL Superleague Rapid 2023 (4.2)}) 12. Rd1 {[%emt 0:09:54]} Nb4 {[%emt 0:05:33]} 13. a3 {[%emt 0:08:37]} Nd3 {[%emt 0:22:35]} 14. Bxd3 {[%emt 0:00:29]} cxd3 {[%emt 0:00:02]} 15. Qxd3 {[%emt 0:00:12]} Bb7 {[%emt 0:00:08]} 16. Ne4 {[%emt 0:02:37]} h6 {[%emt 0:01:19]} 17. Ng3 {[%emt 0:03:45]} Qd5 {[%emt 0:03:02]} 18. Nh5 {[%emt 0:10:38]} Qe4 {[%emt 0:00:55]} 19. h3 {[%emt 0:06:51]} Rfd8 {[%emt 0:06:11]} 20. Qxe4 {[%emt 0:08:00]} Bxe4 {[%emt 0:00:04]} 21. Be3 {[%emt 0:00:23]} Nd5 {[%emt 0:10:26]} 22. Nd2 {[%emt 0:09:09]} Bg6 {[%emt 0:02:44]} 23. Nf4 {[%emt 0:01:37]} Nxf4 {[%emt 0:01:08]} 24. Bxf4 {[%emt 0:00:02]} Rxd4 {[%emt 0:00:07]} 25. Be3 {[%emt 0:01:06]} Rd5 {[%emt 0:00:55]} 26. Rdc1 {[%emt 0:04:45]} Bd8 {[%emt 0:06:55]} 27. Rc5 {[%emt 0:02:55]} Rb8 {[%emt 0:03:54]} 28. b4 {[%emt 0:02:50]} axb4 {[%emt 0:00:18]} 29. Rxd5 {[%emt 0:04:18]} exd5 {[%emt 0:00:01]} 30. axb4 {[%emt 0:00:08]} Be7 {[%emt 0:00:47]} 31. Ra7 {[%emt 0:01:08]} Bxb4 {[%emt 0:01:18]} 32. Rxc7 {[%emt 0:00:02]} d4 {[%emt 0:02:18]} 33. Bf4 {[%emt 0:00:30]} Bf5 {[%emt 0:03:58]} 34. Nf3 {[%emt 0:04:37]} Bc3 {[%emt 0:00:05]} 35. Bd2 {[%emt 0:08:48]} Rb1+ {[%emt 0:00:58]} 36. Kh2 {[%emt 0:00:06]} Bxd2 {[%emt 0:00:05]} 37. Nxd2 {[%emt 0:00:01]} Rb2 {[%emt 0:00:08]} 38. Nf3 {[%emt 0:00:33]} d3 {[%emt 0:00:11]} 39. Ra7 {[%emt 0:04:59]} Rxf2 {[%emt 0:00:19]} 40. Ra8+ {[%emt 0:00:06]} Kh7 {[%emt 0:00:04]} 41. Kg3 {[%emt 0:00:11]} Re2 {[%emt 0:03:02]} 42. Rd8 {[%emt 0:00:27]} Be4 {[%emt 0:10:02]} 43. Rd7 {[%emt 0:00:16]} Bf5 {[%emt 0:06:05]} ({Better is} 43... Kg6 $17) 44. Rd6 {[%emt 0:01:37]} ({White should play} 44. Rd8 $1 $11) 44... Ra2 {[%emt 0:02:27]} 45. Kf4 {[%emt 0:01:52]} Bg6 {[%emt 0:00:06]} 46. g4 {[%emt 0:00:20]} Re2 {[%emt 0:01:58]} 47. Rd4 {[%emt 0:00:24]} Be4 $1 {[%emt 0:00:41]} 48. h4 $1 {[%emt 0:01:50]} (48. Rxe4 g5+ 49. Kf5 Rf2 $17) 48... Bxf3 {[%emt 0:01:13]} 49. Kxf3 {[%emt 0:00:01]} Rh2 {[%emt 0:00:24]} (49... Rxe5 $15 50. h5 Re6) 50. Kg3 $11 {[%emt 0:01:46]} Rd2 {[%emt 0:00:09]} 51. Kf3 {[%emt 0:01:36]} Rd1 {[%emt 0:02:56]} 52. Ke3 {[%emt 0:00:20]} Rh1 {[%emt 0:04:16]} 53. h5 {[%emt 0:00:17]} g6 {[%emt 0:00:43]} 54. Rxd3 {[%emt 0:01:27]} gxh5 {[%emt 0:00:19]} 55. gxh5 {[%emt 0:00:14]} Rxh5 {[%emt 0:00:10]} 56. Kf4 {[%emt 0:00:35]} Rg5 {[%emt 0:00:28]} 57. Rd7 {[%emt 0:01:23]} Kg6 {[%emt 0:00:05]} 58. Rd6+ {[%emt 0:00:21]} Kg7 {[%emt 0:00:01]} 59. Rd7 {[%emt 0:02:28]} Rg6 {[%emt 0:00:06]} 60. Rd1 {[%emt 0:00:11]} h5 {[%emt 0:00:15]} 61. Ra1 {[%emt 0:01:23]} h4 {[%emt 0:03:00]} 62. Rh1 {[%emt 0:00:42]} Rh6 {[%emt 0:00:04]} 63. Kg4 {[%emt 0:01:13]} Kg6 {[%emt 0:00:14]} 64. Kh3 {[%emt 0:00:17]} Kf5 {[%emt 0:00:32]} 65. Rf1+ {[%emt 0:00:07]} Ke6 {[%emt 0:00:02]} 66. Rf2 {[%emt 0:00:19]} Rh7 {[%emt 0:00:06]} 67. Re2 $1 {[%emt 0:00:09]} Rh5 {[%emt 0:00:26]} 68. Re4 {[%emt 0:00:52]} Rxe5 {[%emt 0:00:08]} 69. Rxh4 {[%emt 0:00:07]} Rg5 {[%emt 0:00:04]} 70. Ra4 {[%emt 0:00:49]} f6 {[%emt 0:03:04]} 71. Ra6+ {[%emt 0:00:15]} Kf7 {[%emt 0:00:22]} 72. Ra7+ {[%emt 0:00:12]} Kg6 {[%emt 0:00:05]} 73. Ra6 {[%emt 0:00:04]} Rg1 {[%emt 0:00:05]} 74. Kh2 {[%emt 0:00:12]} Rg5 {[%emt 0:00:13]} 75. Kh3 {[%emt 0:00:05]} Rg1 {[%emt 0:00:03]} 76. Kh2 {[%emt 0:00:04]} 0-1

[Event "III Menorca Open-A 2024"]
[Site "Ciutadella Menorca"]
[Date "2024.04.04"]
[Round "5.19"]
[White "Kalogeris, Ioannis"]
[Black "Stremavicius, Titas"]
[Result "1/2-1/2"]
[ECO "B30"]
[WhiteElo "2427"]
[BlackElo "2540"]
[Annotator "TA"]
[PlyCount "57"]
[EventDate "2024.04.02"]
[EventType "swiss"]
[EventCountry "ESP"]
[SourceTitle "playchess.com"]
[Source "ChessBase"]
[SourceQuality "1"]
[TimeControl "5400+30"]

{[%evp 9,57,34,44,8,16,8,15,0,10,0,0,0,0,-9,0,0,22,18,16,30,40,-39,-36,-33,-34,-34,-24,-32,-32,-47,0,0,0,-33,-20,-42,-43,-110,-9,-6,37,-53,-46,-45,0,-42,-20,-12,-13,-12]} 1. e4 {[%emt 0:01:46]} c5 {[%emt 0:00:16]} 2. Nf3 {[%emt 0:00:11]} Nc6 {[%emt 0:00:39]} 3. Nc3 {[%emt 0:00:44][%cal Bb1c3,Bc3e4,Be4g5][%mdl 32]} Nf6 {[%emt 0:01:25][%cal Bg8f6,Bf6h5,Bh5g7,Bg7e6,Be6d4][%mdl 32]} 4. Bb5 {[%emt 0:04:06]} g6 {[%emt 0:00:38]} 5. e5 {[%emt 0:03:38]} Nh5 {[%emt 0:00:24]} 6. Bxc6 {[%emt 0:05:46]} dxc6 {[%emt 0:00:06]} 7. h3 {[%emt 0:00:29] Inhibits Bg4.} Ng7 {[%emt 0:03:39]} 8. Ne4 {[%emt 0:03:32]} Ne6 {[%emt 0:00:52]} 9. b3 {[%emt 0:02:23]} Bg7 {[%emt 0:03:57][%cal Og7e5]} 10. Bb2 {[%emt 0:00:38]} b6 {[%emt 0:02:27]} 11. d3 {[%emt 0:01:12]} a5 {[%emt 0:02:11]} 12. a4 {[%emt 0:00:11]} f5 {[%emt 0:06:07]} 13. Neg5 {[%emt 0:13:33]} Nd4 {[%emt 0:20:49]} 14. h4 {[%emt 0:06:48]} Qc7 {[%emt 0:06:56]} 15. Kf1 {[%emt 0:14:31]} (15. O-O $14) 15... h6 $15 {[%emt 0:06:02]} ({Much weaker is} 15... Bxe5 $6 16. Nxe5 Qxe5 17. c3 $14) 16. Nh3 {[%emt 0:00:28]} Bxe5 {[%emt 0:00:21]} 17. Nxe5 {[%emt 0:03:02]} Qxe5 {[%emt 0:00:03]} 18. c3 {[%emt 0:13:31]} Ne6 {[%emt 0:00:48]} 19. Qd2 {[%emt 0:04:42] [#]} g5 {[%emt 0:13:20]} 20. Re1 $11 {[%emt 0:00:24]} Qf6 {[%emt 0:00:36]} 21. c4 {[%emt 0:04:14]} Nd4 {[%emt 0:01:46]} 22. Bxd4 {[%emt 0:03:04]} cxd4 {[%emt 0:00:30]} 23. f4 {[%emt 0:01:58]} ({White should play} 23. f3 $1 $15) 23... gxf4 {[%emt 0:07:04]} ({Much less strong is} 23... gxh4 24. Ng1 $15) (23... g4 $17 24. Ng1 c5) 24. Nxf4 {[%emt 0:00:10]} Bd7 {[%emt 0:01:16]} 25. Qe2 {[%emt 0:00:54]} (25. h5 $14) 25... Rg8 {[%emt 0:00:29]} 26. Kf2 {[%emt 0:03:33]} Kf7 {[%emt 0:04:44]} 27. Qe5 {[%emt 0:01:05]} (27. h5 $5 {[%cal Rf4g6]}) 27... Qxe5 {[%emt 0:04:19]} 28. Rxe5 {[%emt 0:00:01]} e6 {[%emt 0:00:37]} 29. Rhe1 {[%emt 0:00:19] Weighted Error Value: White=0.24 (precise) /Black=0.19 (very precise) .  Mistake:       	White=3     	Black=2      Inaccurate:     	White=2     	Black=2      OK:         	White=10    	Black=9      Best:        	---       	Black=2} 1/2-1/2